fUSD/lending_fUSD_20250120
["ID","MTS","AMOUNT","RATE_DAILY","PERIOD"]
[349638512,1737342642288,-500.0,0.0002147,2]
[349638514,1737342642297,-500.0,0.0002147,2]
[349638515,1737342642307,-500.0,0.0002147,2]
[349638516,1737342642319,-509.32527685,0.0002147,2]
[349638517,1737342642329,-500.0,0.0002147,2]
[349638518,1737342642339,-500.0,0.0002147,2]
[349638519,1737342642349,-500.0,0.0002147,2]
[349638520,1737342642363,-500.0,0.0002147,2]
[349638521,1737342642374,-748.07,0.0002147,2]
[349638522,1737342642384,-500.0,0.0002147,2]
[349638523,1737342642396,-500.0,0.0002147,2]
[349638525,1737342642406,-1059.07,0.0002147,2]
[349638526,1737342642415,-500.0,0.0002147,2]
[349638527,1737342642425,-500.0,0.0002147,2]
[349638528,1737342642435,-500.0,0.0002147,2]
[349638529,1737342642447,-523.35,0.0002147,2]
[349638530,1737342642456,-508.02290392,0.0002147,2]
[349638531,1737342642467,-500.0,0.0002147,2]
[349638532,1737342642476,-500.0,0.0002147,2]
[349638533,1737342642486,-969.18,0.0002147,2]
[349638534,1737342642495,-501.01,0.0002147,2]
[349638535,1737342642505,-500.0,0.0002147,2]
[349638537,1737342642514,-1056.45,0.0002147,2]
[349638539,1737342642524,-439.11606448,0.0002147,2]
[349638541,1737342642534,-1096.57,0.0002147,2]
[349638543,1737342642543,-568.82,0.0002147,2]
[349638545,1737342642552,-500.0,0.0002147,2]
[349638547,1737342642562,-815.86,0.0002147,2]
[349638549,1737342642571,-500.0,0.0002147,2]
[349638551,1737342642581,-500.0,0.0002147,2]
[349638552,1737342642590,-959.87,0.0002147,2]
[349638554,1737342642600,-500.0,0.0002147,2]
[349638556,1737342642610,-500.0,0.0002147,2]
[349638558,1737342642619,-1305.7,0.0002147,2]
[349638560,1737342642629,-500.0,0.0002147,2]
[349638562,1737342642638,-500.0,0.0002147,2]
[349638564,1737342642649,-500.0,0.0002147,2]
[349638566,1737342642659,-513.86141558,0.0002147,2]
[349638567,1737342642668,-1481.37,0.0002147,2]
[349638568,1737342642678,-993.82,0.0002147,2]
[349638569,1737342642689,-2285.32,0.0002147,2]
[349638570,1737342642699,-500.0,0.0002147,2]
[349638571,1737342642708,-500.0,0.0002147,2]
[349638572,1737342642720,-457.55796127,0.0002147,2]
[349638573,1737342642729,-500.0,0.0002147,2]
[349638574,1737342642739,-500.0,0.0002147,2]
[349638575,1737342642749,-500.0,0.0002147,2]
[349638576,1737342642759,-500.0,0.0002147,2]
[349638577,1737342642769,-500.0,0.0002147,2]
[349638578,1737342642778,-545.1247888,0.0002147,2]
[349638579,1737342642788,-500.0,0.0002147,2]
[349638580,1737342642797,-500.0,0.0002147,2]
[349638581,1737342642807,-500.0,0.0002147,2]
[349638582,1737342642817,-500.0,0.0002147,2]
[349638583,1737342642827,-500.0,0.0002147,2]
[349638584,1737342642837,-618.42,0.0002147,2]
[349638585,1737342642847,-500.0,0.0002147,2]
[349638586,1737342642856,-892.0,0.0002147,2]
[349638587,1737342642866,-2008.6,0.0002147,2]
[349638588,1737342642875,-5620.13,0.0002147,2]
[349638589,1737342642886,-964.66,0.0002147,2]
[349638590,1737342642896,-2634.92,0.0002147,2]
[349638591,1737342642906,-3328.77,0.0002147,2]
[349638593,1737342642915,-4550.1,0.0002147,2]
[349638594,1737342642925,-1575.45,0.0002147,2]
[349638596,1737342642935,-1216.87,0.0002147,2]
[349638598,1737342642944,-621.58,0.0002147,2]
[349638599,1737342642955,-6710.95,0.0002147,2]
[349638601,1737342642964,-2761.09,0.0002147,2]
[349638602,1737342642975,-502.0,0.00021479,2]
[349638604,1737342642984,-166.80627001,0.00021498,2]
[349638605,1737342642993,-500.0,0.000215,7]
[349638606,1737342643002,-472.91,0.00021515,2]
[349638607,1737342643012,-287.07,0.00021523,2]
[349638608,1737342643022,-150.0,0.00021523,2]
[349638609,1737342643032,-150.0,0.00021523,2]
[349638610,1737342643042,-150.0,0.00021523,2]
[349638611,1737342643051,-629.34,0.00021547,2]
[349638612,1737342643062,-500.0,0.00021547,2]
[349638614,1737342643072,-2182.22,0.00021547,2]
[349638616,1737342643081,-799.69,0.00021547,2]
[349638617,1737342643091,-1204.09,0.00021547,2]
[349638618,1737342643102,-567.88,0.00021547,2]
[349638619,1737342643112,-952.83,0.00021547,2]
[349638620,1737342643122,-1683.62,0.00021547,2]
[349638621,1737342643132,-1996.39,0.00021547,2]
[349638622,1737342643142,-1125.05,0.00021547,2]
[349638623,1737342643152,-1410.74,0.00021547,2]
[349638624,1737342643162,-990.65,0.00021547,2]
[349638625,1737342643172,-1843.66,0.00021547,2]
[349638626,1737342643183,-862.95,0.00021547,2]
[349638627,1737342643192,-602.3,0.00021547,2]
[349638628,1737342643203,-500.0,0.00021547,2]
[349638629,1737342643212,-527.17,0.00021547,2]
[349638630,1737342643223,-500.0,0.00021547,2]
[349638631,1737342643233,-500.0,0.00021547,2]
[349638632,1737342643243,-522.54,0.00021547,2]
[349638633,1737342643253,-500.0,0.00021547,2]
[349638634,1737342643262,-847.91,0.00021547,2]
[349638635,1737342643271,-512.12,0.00021547,2]
[349638636,1737342643281,-513.45,0.00021547,2]
[349638637,1737342643290,-2206.18,0.00021547,2]
[349638638,1737342643300,-2712.16,0.00021547,2]
[349638639,1737342643309,-3034.96,0.00021547,2]
[349638640,1737342643319,-500.0,0.00021547,2]
[349638642,1737342643329,-1029.27,0.00021547,2]
[349638643,1737342643338,-547.8,0.00021547,2]
[349638646,1737342643348,-500.0,0.00021547,2]
[349638648,1737342643363,-1082.17,0.00021547,2]
[349638650,1737342643372,-937.92,0.00021547,2]
[349638652,1737342643382,-2021.67,0.00021547,2]
[349638654,1737342643391,-1659.96,0.00021547,2]
[349638656,1737342643401,-2033.55,0.00021547,2]
[349638658,1737342643412,-2192.85,0.00021547,2]
[349638660,1737342643421,-500.0,0.00021547,2]
[349638662,1737342643432,-1223.4,0.00021547,2]
[349638664,1737342643442,-602.59,0.00021547,2]
[349638665,1737342643451,-961.69,0.00021547,2]
[349638667,1737342643462,-526.91723128,0.00021547,2]
[349638669,1737342643475,-607.71,0.00021547,2]
[349638671,1737342643484,-905.93,0.00021547,2]
[349638673,1737342643494,-1645.06,0.00021547,2]
[349638675,1737342643504,-1132.66,0.00021547,2]
[349638678,1737342643514,-761.06,0.00021547,2]
[349638679,1737342643524,-924.67,0.00021547,2]
[349638681,1737342643534,-500.0,0.00021547,2]
[349638682,1737342643543,-1858.04,0.00021547,2]
[349638683,1737342643553,-900.96,0.00021547,2]
[349638684,1737342643563,-691.62,0.00021547,2]
[349638685,1737342643572,-824.77,0.00021547,2]
[349638686,1737342643581,-634.78,0.00021547,2]
[349638687,1737342643590,-500.0,0.00021547,2]
[349638688,1737342643602,-834.5718213,0.0002156,2]
[349638689,1737342643612,-500.0,0.000216,7]
[349638690,1737342643621,-500.0,0.000217,7]
[349638691,1737342643631,-1010.0,0.000217,2]
[349638692,1737342643641,-200.3716,0.00021721,2]
[349638693,1737342643650,-290.33897051,0.00021733,2]
[349638694,1737342643660,-500.0,0.00021742,2]
[349638695,1737342643670,-500.13,0.00021742,2]
[349638696,1737342643679,-1109.24,0.00021742,2]
[349638697,1737342643689,-916.49,0.00021742,2]
[349638698,1737342643699,-500.0,0.00021742,2]
[349638699,1737342643709,-500.0,0.00021742,2]
[349638700,1737342643719,-2440.38,0.00021742,2]
[349638701,1737342643728,-500.0,0.00021742,2]
[349638702,1737342643876,-463.87,0.00021742,2]
[349638703,1737342643887,-500.0,0.00021742,2]
[349638704,1737342643896,-1055.76,0.00021742,2]
[349638705,1737342643905,-500.0,0.00021742,2]
[349638706,1737342643920,-1211.17,0.00021742,2]
[349638707,1737342643929,-1953.32,0.00021742,2]
[349638708,1737342643939,-523.78,0.00021742,2]
[349638709,1737342643949,-1223.59,0.00021742,2]
[349638710,1737342643958,-2669.11,0.00021742,2]
[349638711,1737342643970,-500.0,0.00021742,2]
[349638712,1737342643979,-613.79,0.00021742,2]
[349638713,1737342643989,-500.0,0.00021742,2]
[349638714,1737342643999,-3344.36,0.00021742,2]
[349638715,1737342644008,-1544.24,0.00021742,2]
[349638716,1737342644019,-500.0,0.00021742,2]
[349638717,1737342644028,-3262.96,0.00021742,2]
[349638718,1737342644038,-786.83,0.00021742,2]
[349638719,1737342644050,-1260.71,0.00021742,2]
[349638720,1737342644061,-500.0,0.00021743,2]
[349638721,1737342644071,-1189.66,0.00021743,2]
[349638722,1737342644080,-500.0,0.00021743,2]
[349638723,1737342644090,-500.0,0.00021743,2]
[349638724,1737342644100,-500.0,0.00021743,2]
[349638725,1737342644110,-500.0,0.00021743,2]
[349638726,1737342644121,-500.0,0.00021743,2]
[349638727,1737342644131,-976.01,0.00021743,2]
[349638728,1737342644142,-500.0,0.00021743,2]
[349638729,1737342644152,-500.0,0.00021743,2]
[349638730,1737342644163,-500.0,0.00021743,2]
[349638731,1737342644174,-811.83,0.00021743,2]
[349638732,1737342644184,-253.23484077,0.00021743,2]
[349638733,1737342644194,-500.0,0.00021743,2]
[349638734,1737342644204,-500.0,0.00021743,2]
[349638735,1737342644214,-584.35,0.00021743,2]
[349638736,1737342644228,-500.0,0.00021743,2]
[349638737,1737342644238,-500.0,0.00021743,2]
[349638738,1737342644248,-262.38954641,0.00021743,2]
[349638739,1737342644258,-1467.34,0.00021743,2]
[349638740,1737342644269,-545.8,0.00021743,2]
[349638741,1737342644278,-500.0,0.00021743,2]
[349638742,1737342644288,-590.92,0.00021743,2]
[349638743,1737342644298,-945.09,0.00021743,2]
[349638744,1737342644307,-1296.15,0.00021743,2]
[349638745,1737342644317,-500.0,0.00021743,2]
[349638746,1737342644327,-500.0,0.00021743,2]
[349638747,1737342644337,-500.0,0.00021743,2]
[349638748,1737342644347,-1415.53,0.00021743,2]
[349638749,1737342644360,-500.0,0.00021743,2]
[349638750,1737342644370,-500.0,0.00021743,2]
[349638751,1737342644379,-200.0,0.00021743,2]
[349638752,1737342644389,-500.0,0.00021743,2]
[349638753,1737342644399,-500.0,0.00021743,2]
[349638754,1737342644410,-433.5518069,0.00021743,2]
[349638755,1737342644420,-500.0,0.00021743,2]
[349638756,1737342644432,-691.07,0.00021743,2]
[349638757,1737342644442,-1003.65,0.00021743,2]
[349638758,1737342644451,-500.0,0.00021743,2]
[349638759,1737342644463,-1167.836517,0.00021743,2]
[349638760,1737342644476,-932.78,0.00021743,2]
[349638761,1737342644485,-552.75,0.00021743,2]
[349638762,1737342644495,-864.15,0.00021743,2]
[349638763,1737342644504,-500.0,0.00021743,2]
[349638764,1737342644515,-730.84,0.00021743,2]
[349638765,1737342644524,-500.0,0.00021743,2]
[349638766,1737342644534,-500.0,0.00021743,2]
[349638767,1737342644543,-2122.08,0.00021743,2]
[349638768,1737342644553,-1215.900175,0.00021743,2]
[349638769,1737342644563,-1231.55,0.00021743,2]
[349638770,1737342644573,-1804.16,0.00021743,2]
[349638771,1737342644583,-500.0,0.00021743,2]
[349638772,1737342644593,-708.55,0.00021743,2]
[349638773,1737342644603,-2126.14,0.00021743,2]
[349638774,1737342644613,-1153.01,0.00021743,2]
[349638775,1737342644623,-928.73,0.00021743,2]
[349638776,1737342644632,-500.0,0.00021743,2]
[349638777,1737342644642,-1681.27,0.00021743,2]
[349638778,1737342644652,-808.88,0.00021743,2]
[349638779,1737342644662,-785.2,0.00021743,2]
[349638780,1737342644672,-500.0,0.00021743,2]
[349638781,1737342644681,-500.0,0.00021743,2]
[349638782,1737342644691,-981.53,0.00021743,2]
[349638783,1737342644701,-500.0,0.00021743,2]
[349638784,1737342644710,-500.0,0.00021743,2]
[349638785,1737342644722,-500.0,0.00021743,2]
[349638786,1737342644731,-500.0,0.00021743,2]
[349638787,1737342644740,-2313.08,0.00021743,2]
[349638788,1737342644750,-686.36,0.00021743,2]
[349638789,1737342644760,-1397.67,0.00021743,2]
[349638790,1737342644769,-576.9,0.00021743,2]
[349638791,1737342644779,-527.28281463,0.00021743,2]
[349638792,1737342644788,-1853.59,0.00021743,2]
[349638793,1737342644798,-500.0,0.00021743,2]
[349638794,1737342644808,-500.0,0.00021743,2]
[349638795,1737342644817,-500.0,0.00021743,2]
[349638796,1737342644827,-500.0,0.00021743,2]
[349638797,1737342644837,-813.6,0.00021743,2]
[349638798,1737342644846,-1856.53,0.00021743,2]
[349638799,1737342644855,-500.0,0.00021743,2]
[349638800,1737342644866,-1779.35,0.00021743,2]
[349638801,1737342644875,-500.0,0.00021743,2]
[349638802,1737342644885,-500.0,0.00021743,2]
[349638803,1737342644894,-1387.29,0.00021743,2]
[349638804,1737342644903,-500.0,0.00021743,2]
[349638805,1737342644912,-1719.63,0.00021743,2]
[349638806,1737342644921,-737.19,0.00021743,2]
[349638807,1737342644931,-2555.42,0.00021743,2]
[349638808,1737342644940,-1791.44,0.00021743,2]
[349638809,1737342644949,-500.0,0.00021743,2]
[349638810,1737342644959,-1924.61,0.00021743,2]
[349638811,1737342644973,-514.19791576,0.00021743,2]
[349638812,1737342644983,-1055.24,0.00021743,2]
[349638813,1737342644992,-500.0,0.00021743,2]
[349638814,1737342645002,-8350.22,0.00021743,2]
[349638815,1737342645011,-500.0,0.00021743,2]
[349638816,1737342645021,-826.36,0.00021743,2]
[349638817,1737342645030,-902.28,0.00021743,2]
[349638818,1737342645040,-1366.78,0.00021743,2]
[349638819,1737342645049,-518.90772922,0.00021743,2]
[349638820,1737342645059,-940.59,0.00021743,2]
[349638821,1737342645069,-500.0,0.00021743,2]
[349638822,1737342645078,-2226.73,0.00021743,2]
[349638823,1737342645087,-500.0,0.00021743,2]
[349638824,1737342645097,-1454.44,0.00021743,2]
[349638825,1737342645106,-500.0,0.00021743,2]
[349638826,1737342645115,-500.0,0.00021743,2]
[349638827,1737342645125,-622.7,0.00021743,2]
[349638828,1737342645134,-3186.87,0.00021743,2]
[349638829,1737342645143,-6114.7,0.00021743,2]
[349638830,1737342645153,-512.94047981,0.00021743,2]
[349638831,1737342645162,-500.0,0.00021743,2]
[349638832,1737342645174,-500.0,0.00021743,2]
[349638833,1737342645183,-500.0,0.00021743,2]
[349638834,1737342645192,-3654.74,0.00021743,2]
[349638835,1737342645201,-500.0,0.00021743,2]
[349638836,1737342645211,-1924.69,0.00021743,2]
[349638837,1737342645223,-500.0,0.00021743,2]
[349638838,1737342645233,-521.86442783,0.00021743,2]
[349638839,1737342645243,-500.0,0.00021743,2]
[349638840,1737342645252,-500.0,0.00021743,2]
[349638841,1737342645262,-1088.04,0.00021743,2]
[349638842,1737342645272,-500.0,0.00021743,2]
[349638843,1737342645281,-4445.58,0.00021743,2]
[349638844,1737342645291,-507.07368546,0.00021743,2]
[349638845,1737342645299,-500.0,0.00021743,2]
[349638846,1737342645309,-1729.89,0.00021743,2]
[349638847,1737342645319,-500.0,0.00021743,2]
[349638850,1737342645329,-500.0,0.00021743,2]
[349638851,1737342645476,-517.11131283,0.00021743,2]
[349638852,1737342645486,-2476.89,0.00021743,2]
[349638853,1737342645496,-500.0,0.00021743,2]
[349638854,1737342645506,-230.17673455,0.00021743,2]
[349638855,1737342645516,-574.90398487,0.00021743,2]
[349638856,1737342645526,-1869.99,0.00021743,2]
[349638857,1737342645536,-6893.63,0.00021743,2]
[349638858,1737342645546,-500.0,0.00021743,2]
[349638859,1737342645557,-500.0,0.00021743,2]
[349638860,1737342645567,-500.0,0.00021743,2]
[349638861,1737342645578,-500.0,0.00021743,2]
[349638862,1737342645588,-500.0,0.00021743,2]
[349638863,1737342645599,-1167.83,0.00021743,2]
[349638864,1737342645609,-500.0,0.00021743,2]
[349638865,1737342645620,-758.61,0.00021743,2]
[349638866,1737342645630,-1214.42,0.00021743,2]
[349638867,1737342645639,-500.0,0.00021743,2]
[349638868,1737342645649,-2989.61,0.00021743,2]
[349638869,1737342645659,-1654.4,0.00021743,2]
[349638870,1737342645669,-500.0,0.00021743,2]
[349638871,1737342645679,-859.76,0.00021743,2]
[349638872,1737342645690,-500.0,0.00021743,2]
[349638873,1737342645700,-534.88343231,0.00021743,2]
[349638874,1737342645710,-517.57247247,0.00021743,2]
[349638875,1737342645722,-1297.72,0.00021743,2]
[349638876,1737342645732,-10541.35,0.00021743,2]
[349638877,1737342645741,-500.0,0.00021743,2]
[349638878,1737342645751,-541.01795527,0.00021743,2]
[349638879,1737342645760,-500.0,0.00021743,2]
[349638880,1737342645770,-519.59457505,0.00021743,2]
[349638881,1737342645779,-2094.7,0.00021743,2]
[349638882,1737342645788,-1478.46,0.00021743,2]
[349638883,1737342645798,-500.0,0.00021743,2]
[349638884,1737342645808,-1358.88,0.00021743,2]
[349638885,1737342645817,-500.0,0.00021743,2]
[349638886,1737342645828,-500.0,0.00021743,2]
[349638887,1737342645837,-500.0,0.00021743,2]
[349638888,1737342645847,-500.0,0.00021743,2]
[349638889,1737342645856,-500.0,0.00021743,2]
[349638890,1737342645866,-500.0,0.00021743,2]
[349638891,1737342645875,-3550.51,0.00021743,2]
[349638892,1737342645884,-1308.71,0.00021743,2]
[349638893,1737342645894,-641.37158424,0.00021743,2]
[349638894,1737342645903,-1940.99,0.00021743,2]
[349638895,1737342645913,-500.0,0.00021743,2]
[349638896,1737342645923,-4631.06,0.00021743,2]
[349638897,1737342645933,-2003.5,0.00021743,2]
[349638898,1737342645943,-3405.1,0.00021743,2]
[349638899,1737342645952,-500.0,0.00021743,2]
[349638900,1737342645962,-3711.15,0.00021743,2]
[349638901,1737342645976,-500.0,0.00021743,2]
[349638903,1737342645986,-321.58044967,0.00021743,2]
[349638904,1737342645995,-8929.31,0.00021743,2]
[349638906,1737342646005,-500.0,0.00021743,2]
[349638908,1737342646015,-518.59846176,0.00021744,2]
[349638910,1737342646025,-500.0,0.00021744,2]
[349638912,1737342646034,-500.0,0.00021744,2]
[349638913,1737342646044,-500.0,0.00021744,2]
[349638914,1737342646054,-500.0,0.00021744,2]
[349638915,1737342646064,-500.0,0.00021744,2]
[349638916,1737342646074,-748.07,0.00021744,2]
[349638918,1737342646084,-500.0,0.00021744,2]
[349638920,1737342646094,-500.0,0.00021744,2]
[349638921,1737342646103,-1059.07,0.00021744,2]
[349638922,1737342646113,-152.10525364,0.00021744,2]
[349638923,1737342646123,-500.0,0.00021744,2]
[349638924,1737342646133,-500.0,0.00021744,2]
[349638925,1737342646142,-523.35,0.00021744,2]
[349638926,1737342646152,-500.0,0.00021744,2]
[349638927,1737342646162,-500.0,0.00021744,2]
[349638928,1737342646171,-969.18,0.00021744,2]
[349638929,1737342646180,-501.01,0.00021744,2]
[349638930,1737342646190,-500.0,0.00021744,2]
[349638931,1737342646199,-1056.45,0.00021744,2]
[349638932,1737342646209,-1096.57,0.00021744,2]
[349638933,1737342646221,-568.82,0.00021744,2]
[349638934,1737342646232,-500.0,0.00021744,2]
[349638935,1737342646242,-815.86,0.00021744,2]
[349638936,1737342646251,-500.0,0.00021744,2]
[349638937,1737342646260,-500.0,0.00021744,2]
[349638938,1737342646270,-959.87,0.00021744,2]
[349638939,1737342646280,-500.0,0.00021744,2]
[349638940,1737342646290,-500.0,0.00021744,2]
[349638941,1737342646300,-1305.7,0.00021744,2]
[349638942,1737342646310,-500.0,0.00021744,2]
[349638943,1737342646321,-500.0,0.00021744,2]
[349638944,1737342646331,-500.0,0.00021744,2]
[349638945,1737342646342,-1481.37,0.00021744,2]
[349638946,1737342646352,-993.82,0.00021744,2]
[349638947,1737342646364,-2285.32,0.00021744,2]
[349638948,1737342646374,-514.12056275,0.00021744,2]
[349638949,1737342646384,-500.0,0.00021744,2]
[349638950,1737342646393,-514.72861962,0.00021744,2]
[349638951,1737342646405,-500.0,0.00021744,2]
[349638952,1737342646414,-500.0,0.00021744,2]
[349638953,1737342646423,-500.0,0.00021744,2]
[349638954,1737342646434,-500.0,0.00021744,2]
[349638955,1737342646445,-500.0,0.00021744,2]
[349638956,1737342646455,-500.0,0.00021744,2]
[349638957,1737342646467,-515.75471211,0.00021744,2]
[349638958,1737342646476,-618.42,0.00021744,2]
[349638959,1737342646487,-564.71187681,0.00021744,2]
[349638960,1737342646497,-892.0,0.00021744,2]
[349638961,1737342646507,-2008.6,0.00021744,2]
[349638962,1737342646517,-5620.13,0.00021744,2]
[349638963,1737342646527,-964.66,0.00021744,2]
[349638964,1737342646536,-2634.92,0.00021744,2]
[349638965,1737342646546,-3328.77,0.00021744,2]
[349638966,1737342646556,-4550.1,0.00021744,2]
[349638967,1737342646566,-1575.45,0.00021744,2]
[349638968,1737342646576,-1216.87,0.00021744,2]
[349638969,1737342646586,-621.58,0.00021744,2]
[349638970,1737342646595,-6710.95,0.00021744,2]
[349638971,1737342646605,-2761.09,0.00021744,2]
[349638972,1737342646614,-818.0,0.000218,7]
[349638973,1737342646625,-6754.43868094,0.000218,2]
[349638974,1737342646636,-629.34,0.00021821,2]
[349638975,1737342646645,-500.0,0.00021821,2]
[349638976,1737342646655,-2182.22,0.00021821,2]
[349638977,1737342646664,-799.69,0.00021821,2]
[349638978,1737342646674,-1204.09,0.00021821,2]
[349638979,1737342646683,-567.88,0.00021821,2]
[349638980,1737342646692,-952.83,0.00021821,2]
[349638981,1737342646701,-1683.62,0.00021821,2]
[349638982,1737342646711,-1996.39,0.00021821,2]
[349638983,1737342646722,-1125.05,0.00021821,2]
[349638984,1737342646731,-1410.74,0.00021821,2]
[349638985,1737342646741,-990.65,0.00021821,2]
[349638986,1737342646751,-1843.66,0.00021821,2]
[349638987,1737342646760,-862.95,0.00021821,2]
[349638988,1737342646770,-602.3,0.00021821,2]
[349638989,1737342646780,-500.0,0.00021821,2]
[349638990,1737342646791,-527.17,0.00021821,2]
[349638991,1737342646801,-500.0,0.00021821,2]
[349638992,1737342646811,-500.0,0.00021821,2]
[349638993,1737342646821,-522.54,0.00021821,2]
[349638994,1737342646960,-500.0,0.00021821,2]
[349638995,1737342646975,-847.91,0.00021821,2]
[349638996,1737342646985,-512.12,0.00021821,2]
[349638997,1737342646995,-513.45,0.00021821,2]
[349638998,1737342647005,-2206.18,0.00021821,2]
[349638999,1737342647014,-2712.16,0.00021821,2]
[349639000,1737342647024,-3034.96,0.00021821,2]
[349639001,1737342647033,-500.0,0.00021821,2]
[349639002,1737342647042,-1029.27,0.00021821,2]
[349639003,1737342647051,-547.8,0.00021821,2]
[349639004,1737342647061,-500.0,0.00021821,2]
[349639005,1737342647070,-1082.17,0.00021821,2]
[349639006,1737342647080,-937.92,0.00021821,2]
[349639007,1737342647089,-2021.67,0.00021821,2]
[349639008,1737342647099,-1659.96,0.00021821,2]
[349639009,1737342647109,-2033.55,0.00021821,2]
[349639010,1737342647118,-2192.85,0.00021821,2]
[349639011,1737342647127,-500.0,0.00021821,2]
[349639012,1737342647136,-1223.4,0.00021821,2]
[349639013,1737342647146,-602.59,0.00021821,2]
[349639014,1737342647156,-961.69,0.00021821,2]
[349639015,1737342647166,-607.71,0.00021821,2]
[349639016,1737342647176,-905.93,0.00021821,2]
[349639017,1737342647185,-1645.06,0.00021821,2]
[349639018,1737342647195,-1132.66,0.00021821,2]
[349639019,1737342647206,-761.06,0.00021821,2]
[349639020,1737342647217,-924.67,0.00021821,2]
[349639021,1737342647230,-500.0,0.00021821,2]
[349639022,1737342647240,-1858.04,0.00021821,2]
[349639023,1737342647251,-900.96,0.00021821,2]
[349639024,1737342647262,-691.62,0.00021821,2]
[349639025,1737342647272,-824.77,0.00021821,2]
[349639026,1737342647283,-634.78,0.00021821,2]
[349639027,1737342647293,-500.0,0.00021821,2]
[349639028,1737342647304,-500.0,0.00021824,2]
[349639029,1737342647315,-12851.05,0.00021885,7]
[349639030,1737342647326,-12851.05,0.00021885,7]
[349639031,1737342647336,-12851.05,0.00021885,7]
[349639032,1737342647347,-166.80627001,0.000219,2]
[349639033,1737342647363,-206.0081426,0.000219,2]
[349639034,1737342647373,-3157.69641744,0.000219,2]
[349639035,1737342647383,-504.27577127,0.000219,4]
[349639036,1737342647393,-150.0,0.00021918,2]
[349639037,1737342647404,-500.0,0.00021973,2]
[349639038,1737342647413,-472.065659,0.00021985,2]
[349639039,1737342647423,-472.065659,0.00021985,2]
[349639040,1737342647435,-472.065659,0.00021985,2]
[349639041,1737342647445,-472.065659,0.00021985,2]
[349639042,1737342647455,-472.065659,0.00021985,2]
[349639043,1737342647464,-1171.04291378,0.00021999,10]
[349639044,1737342647477,-500.0,0.00021999,2]
[349639045,1737342647487,-472.065659,0.00021999,2]
[349639046,1737342647496,-358.98126606,0.00021999,2]
[349639047,1737342647506,-259694.14020795,0.00022,2]
[349639048,1737342648137,-20427.96734939,0.00022,2]
[349639049,1737342648150,-5433.45583817,0.00022,2]
[349639050,1737342648162,-9344.0,0.00022,2]
[349639051,1737342648174,-50950.00000001,0.00022,2]
[349639052,1737342648187,-46508.39352408,0.00022,2]
[349639053,1737342648204,-2499.96256852,0.00022,2]
[349639054,1737342648224,-249959.59214515,0.00022,2]
[349639055,1737342648233,-1270.772,0.00022,2]
[349639056,1737342648243,-2021.965,0.00022,2]
[349639057,1737342648253,-567.0,0.00022,2]
[349639058,1737342648263,-635.0,0.00022,2]
[349639059,1737342648273,-150.544,0.00022,2]
[349639060,1737342648283,-1863.0,0.00022,2]
[349639061,1737342648293,-2950.032,0.00022,2]
[349639062,1737342648303,-861.0,0.00022,2]
[349639063,1737342648313,-944.416,0.00022,2]
[349639064,1737342648323,-1270.16,0.00022,2]